bitfinex/quotes_SOLUSD_20230905
["timestamp","ask_amount","ask_price","bid_price","bid_amount"]
[1693920394776,7.954,19.613,19.6,31.58]
[1693920395269,7.954,19.613,19.601,55.0]
[1693920397280,7.954,19.613,19.596,131.68777083]
[1693920397479,7.954,19.613,19.596,55.61419411]
[1693920397675,7.954,19.613,19.597,0.60430668]
[1693920398680,7.954,19.613,19.597,55.60430668]
[1693920399384,7.954,19.613,19.597,0.60430668]
[1693920399585,55.0,19.612,19.597,0.60430668]
[1693920399776,7.956,19.608,19.597,0.60430668]
[1693920399981,25.694,19.615,19.6,31.58]
[1693920400179,7.954,19.613,19.601,0.60430668]
[1693920400580,7.954,19.613,19.599,0.60430668]
[1693920401588,7.954,19.613,19.6,31.58]
[1693920403284,7.954,19.613,19.601,0.53493791]
[1693920403672,7.954,19.613,19.6,31.58]
[1693920403874,7.954,19.613,19.601,0.60430668]
[1693920405185,7.954,19.613,19.601,55.60430668]
[1693920405886,7.954,19.613,19.601,55.0]
[1693920406084,31.58,19.62,19.602,0.60430668]
[1693920406287,101.401,19.625,19.603,11.8005]
[1693920406594,7.952,19.617,19.604,75.60430668]
[1693920407776,7.952,19.617,19.604,75.0]
[1693920408178,7.952,19.617,19.605,0.59619804]
[1693920408377,7.952,19.617,19.604,20.0]
[1693920408676,7.952,19.617,19.605,0.5443447]
[1693920408983,7.952,19.617,19.601,20.0]
[1693920409188,7.952,19.617,19.603,0.50248679]
[1693920409377,7.952,19.617,19.603,20.0]
[1693920409779,7.952,19.617,19.6,31.58]
[1693920409979,7.954,19.612,19.596,40.79862631]
[1693920410179,7.954,19.612,19.597,0.60430668]
[1693920411377,7.954,19.612,19.597,55.60430668]
[1693920412586,7.954,19.612,19.597,0.60430668]
[1693920412889,7.954,19.612,19.595,50.24718374]
[1693920412890,7.956,19.607,19.595,50.24718374]
[1693920413095,7.956,19.608,19.592,50.70964427]
[1693920413391,7.956,19.608,19.593,76.31029686]
[1693920415183,7.956,19.608,19.594,55.0]
[1693920415395,7.956,19.608,19.595,20.0]
[1693920415594,7.956,19.608,19.596,0.60430668]
[1693920415992,7.956,19.608,19.596,55.60430668]
[1693920416593,7.956,19.608,19.596,55.0]
[1693920418294,7.954,19.611,19.596,55.0]
[1693920418695,7.954,19.611,19.597,0.54445226]
[1693920422387,7.954,19.611,19.597,0.54445226]
[1693920422898,7.954,19.613,19.597,0.54445226]
[1693920423703,7.954,19.613,19.597,12.34856226]
[1693920423904,7.954,19.613,19.598,55.0]
[1693920424383,92.9922,19.614,19.6,31.63]
[1693920424585,92.9922,19.614,19.601,55.0]
[1693920425601,100.9452,19.614,19.602,0.60430668]
[1693920427687,100.9452,19.614,19.601,55.0]
[1693920427892,100.9452,19.614,19.602,0.60430668]
[1693920431108,126.6402,19.614,19.602,0.60430668]
[1693920432801,126.6402,19.614,19.601,55.0]
[1693920433702,100.9452,19.614,19.601,55.0]
[1693920433888,100.9452,19.614,19.602,0.49638047]
[1693920434193,7.953,19.614,19.601,55.0]
[1693920436805,7.953,19.614,19.6,41.42448979]
[1693920437007,7.953,19.614,19.601,0.60430668]
[1693920437207,7.953,19.614,19.599,0.60430668]
[1693920438094,7.953,19.614,19.6,31.61]
[1693920438408,7.953,19.614,19.601,55.60430668]
[1693920444307,7.953,19.614,19.602,20.0]
[1693920444513,7.953,19.614,19.603,55.60430668]
[1693920445016,7.953,19.614,19.604,20.0]
[1693920445216,7.953,19.614,19.605,55.0]
[1693920445716,25.69,19.618,19.605,55.0]
[1693920445899,7.953,19.616,19.605,55.0]
[1693920446214,7.953,19.616,19.605,11.7993]
[1693920446416,7.953,19.616,19.604,20.0]
[1693920446628,7.953,19.616,19.605,0.60430668]
[1693920446914,7.953,19.616,19.602,0.60430668]
[1693920447709,7.953,19.616,19.602,55.60430668]
[1693920447916,7.953,19.616,19.603,20.0]
[1693920448111,7.953,19.616,19.604,0.60430668]
[1693920453117,7.953,19.616,19.603,20.0]
[1693920454117,7.953,19.616,19.604,0.60430668]
[1693920454320,7.953,19.616,19.603,20.0]
[1693920455023,7.953,19.616,19.604,0.60430668]
[1693920480838,7.952,19.618,19.604,0.60430668]
[1693920481036,55.0,19.617,19.604,0.60430668]
[1693920481238,62.952,19.617,19.603,20.0]
[1693920484846,62.952,19.617,19.604,20.0]
[1693920485046,62.952,19.617,19.602,0.60430668]
[1693920485243,7.952,19.617,19.602,0.60430668]
[1693920486249,7.952,19.617,19.602,8.56230668]
[1693920486546,7.952,19.617,19.604,0.60430668]
[1693920487042,31.61,19.62,19.604,0.60430668]
[1693920487043,7.951,19.619,19.604,0.60430668]
[1693920487244,234.29178839,19.625,19.604,0.60430668]
[1693920487245,7.947,19.629,19.61,31.61]
[1693920487445,7.946,19.631,19.614,7.953]
[1693920487637,7.946,19.631,19.614,71.64676796]
[1693920487947,7.946,19.631,19.615,75.0]
[1693920488149,7.946,19.631,19.615,146.64576796]
[1693920488449,7.946,19.631,19.62,31.61]
[1693920489539,7.946,19.633,19.62,31.61]
[1693920490250,186.18578839,19.635,19.62,31.61]
[1693920492949,211.85378839,19.635,19.62,31.61]
[1693920493153,55.0,19.634,19.62,31.61]
[1693920493449,7.947,19.63,19.616,0.60430668]
[1693920493948,7.947,19.63,19.615,63.69376796]
[1693920494145,7.947,19.63,19.616,0.60430668]
[1693920495253,7.947,19.63,19.616,55.60430668]
[1693920495448,97.7464,19.629,19.616,55.60430668]
[1693920495753,7.947,19.628,19.616,55.60430668]
[1693920496943,7.946,19.631,19.616,63.55630668]
[1693920497142,7.946,19.631,19.62,31.61]
[1693920503146,7.946,19.631,19.616,62.952]
[1693920503345,7.946,19.631,19.617,0.60430668]
[1693920503548,7.946,19.631,19.617,8.55630668]
[1693920503746,7.946,19.631,19.617,7.952]
[1693920503945,7.946,19.631,19.615,63.69376796]
[1693920504251,7.949,19.625,19.614,0.60430668]
[1693920504456,7.949,19.625,19.614,20.60430668]
[1693920505556,7.949,19.625,19.614,0.60430668]
[1693920506750,7.949,19.625,19.61,102.81565876]
[1693920506751,7.949,19.625,19.612,0.60430668]
[1693920507056,7.949,19.625,19.611,0.60430668]
[1693920507262,55.0,19.624,19.61,94.86165876]
[1693920507456,7.951,19.62,19.61,94.86165876]
[1693920508859,7.951,19.62,19.611,0.60254083]
[1693920509156,7.951,19.62,19.61,94.86165876]
[1693920509351,7.95,19.622,19.611,0.49570536]
[1693920509761,7.95,19.622,19.61,94.86165876]
[1693920511360,7.95,19.622,19.61,102.81665876]
[1693920511960,7.95,19.622,19.611,0.57505982]
[1693920516657,7.95,19.622,19.61,102.81665876]
[1693920517061,7.95,19.622,19.611,0.60430668]
[1693920521259,7.949,19.624,19.612,7.954]
[1693920522774,7.949,19.624,19.613,0.52043797]
[1693920523159,33.631,19.624,19.613,0.52043797]
[1693920523363,7.949,19.624,19.611,0.60430668]
[1693920523858,7.949,19.624,19.611,8.55830668]
[1693920524062,7.949,19.624,19.611,7.954]
[1693920527871,25.679,19.627,19.611,7.954]
[1693920528070,75.0,19.626,19.611,7.954]
[1693920529171,7.949,19.624,19.611,7.954]
[1693920533285,7.949,19.624,19.61,31.61]
[1693920533483,33.631,19.624,19.611,55.0]
[1693920534083,64.002,19.624,19.611,55.0]
[1693920534383,7.949,19.624,19.611,55.0]
[1693920537280,7.949,19.624,19.612,11.79508]
[1693920537585,7.949,19.624,19.613,55.0]
[1693920540683,7.947,19.629,19.615,0.60430668]
[1693920540872,7.947,19.629,19.617,7.952]
[1693920541787,7.947,19.629,19.615,7.952]
[1693920541992,7.947,19.629,19.616,55.60430668]
[1693920543490,7.947,19.629,19.616,63.55630668]
[1693920544391,7.947,19.629,19.616,62.952]
[1693920546487,7.947,19.629,19.617,0.60430668]
[1693920546686,259.93378839,19.635,19.62,31.61]
[1693920546892,7.946,19.631,19.62,31.61]
[1693920551694,7.946,19.631,19.621,55.0]
[1693920552495,7.946,19.633,19.621,55.0]
[1693920553782,7.946,19.633,19.622,0.49710356]
[1693920553983,7.946,19.633,19.621,55.0]
[1693920557695,7.946,19.633,19.62,31.61]
[1693920561004,55.0,19.632,19.616,7.952]
[1693920561204,7.948,19.628,19.617,0.60430668]
[1693920561402,7.948,19.628,19.615,50.41933456]
[1693920561591,7.948,19.628,19.614,11.79388]
[1693920561794,7.948,19.628,19.615,20.60430668]
[1693920564509,7.948,19.628,19.615,0.60430668]
[1693920564705,7.948,19.628,19.614,11.79388]
[1693920565004,7.948,19.628,19.615,20.0]
[1693920572513,7.948,19.628,19.615,27.953]
[1693920574417,55.0,19.632,19.615,27.953]
[1693920576220,7.947,19.628,19.615,27.953]
[1693920579114,55.0,19.627,19.615,27.953]
[1693920579316,62.948,19.627,19.615,27.953]
[1693920580616,62.948,19.627,19.615,20.0]
[1693920580812,62.948,19.627,19.614,27.953]
[1693920586823,7.949,19.625,19.614,20.0]
[1693920589024,7.949,19.625,19.609,95.05711371]
[1693920589025,7.949,19.625,19.603,41.12595614]
[1693920589328,7.952,19.617,19.603,7.957]
[1693920589539,56.062,19.622,19.604,0.60430668]
[1693920589718,7.951,19.619,19.607,7.956]
[1693920590424,7.951,19.619,19.605,7.957]
[1693920597423,7.951,19.619,19.6,87.732]
[1693920597424,55.0,19.618,19.601,7.958]
[1693920597633,7.953,19.613,19.602,20.60430668]
[1693920597841,7.953,19.615,19.603,7.957]
[1693920598034,7.953,19.615,19.604,0.60430668]
[1693920598335,7.953,19.615,19.604,20.0]
[1693920600424,7.953,19.615,19.604,27.957]
[1693920601125,31.61,19.62,19.604,27.957]
[1693920601330,114.15241677,19.622,19.605,55.60430668]
[1693920601531,7.951,19.619,19.605,55.60430668]
[1693920602132,7.951,19.619,19.605,63.56130668]
[1693920602741,7.951,19.619,19.605,8.56130668]
[1693920603922,7.951,19.621,19.605,33.92523913]
[1693920604144,7.951,19.621,19.606,55.0]
[1693920604335,7.951,19.621,19.608,7.955]
[1693920604644,7.951,19.621,19.61,31.61]
[1693920605839,98.9413,19.622,19.61,31.61]
[1693920605840,98.9413,19.622,19.61,39.565]
[1693920606136,7.95,19.623,19.61,39.565]
[1693920606323,7.95,19.623,19.61,31.61]
[1693920607330,7.95,19.621,19.61,31.61]
[1693920607730,55.0,19.62,19.61,31.61]
[1693920607940,7.951,19.619,19.61,31.61]
[1693920608140,55.0,19.62,19.61,31.61]
[1693920608347,7.951,19.619,19.61,31.61]
[1693920609635,7.951,19.619,19.606,7.956]
[1693920610337,7.951,19.619,19.604,27.957]
[1693920611248,7.951,19.619,19.605,0.60430668]
[1693920611450,7.951,19.619,19.607,7.956]
[1693920611635,7.951,19.619,19.604,128.70757353]
[1693920611947,7.951,19.619,19.605,0.60430668]
[1693920613043,7.951,19.619,19.604,128.70757353]
[1693920613235,7.951,19.619,19.606,7.956]
[1693920619955,55.0,19.618,19.604,136.66457353]
[1693920620253,7.952,19.616,19.604,85.01326508]
[1693920620457,7.952,19.617,19.604,85.01326508]
[1693920620638,55.0,19.616,19.604,85.01326508]
[1693920621448,7.952,19.617,19.604,85.01326508]
[1693920623846,7.951,19.619,19.604,85.01326508]
[1693920624156,55.0,19.618,19.604,85.01326508]
[1693920624542,7.95,19.621,19.61,31.61]
[1693920624760,48.95208163,19.628,19.61,39.564]
[1693920625055,27.948,19.626,19.61,39.564]
[1693920627755,55.0,19.625,19.61,39.564]
[1693920628055,7.95,19.623,19.61,39.564]
[1693920628558,7.95,19.623,19.61,31.61]
[1693920628749,55.0,19.622,19.61,31.61]
[1693920628948,7.951,19.62,19.61,31.61]
[1693920631258,55.0,19.619,19.604,71.65130845]
[1693920631446,7.951,19.618,19.606,7.956]
[1693920631754,62.951,19.619,19.606,7.956]
[1693920636351,62.951,19.619,19.6,31.61]
[1693920636352,110.2402,19.618,19.6,31.61]
[1693920636551,33.651,19.613,19.6,31.61]
[1693920637870,33.651,19.613,19.596,32.21430668]
[1693920638161,55.0,19.612,19.596,7.96]
[1693920638369,55.0,19.612,19.597,0.60430668]
[1693920638555,7.954,19.611,19.599,7.959]
[1693920638755,55.0,19.612,19.599,7.959]
[1693920639069,110.2402,19.618,19.602,7.958]
[1693920639270,7.953,19.614,19.603,0.60430668]
[1693920639674,7.953,19.614,19.601,0.60430668]
[1693920639877,7.953,19.614,19.601,63.56230668]
[1693920640681,7.953,19.614,19.601,55.60430668]
[1693920640878,7.953,19.614,19.601,0.60430668]
[1693920641276,55.0,19.613,19.601,0.60430668]
[1693920641573,55.0,19.613,19.6,31.61]
[1693920641772,7.954,19.612,19.6,39.568]
[1693920642172,7.953,19.614,19.601,0.53389819]
[1693920642367,7.953,19.614,19.603,7.957]
[1693920642678,7.953,19.614,19.6,31.61]
[1693920642880,7.953,19.614,19.601,0.60430668]
[1693920643177,7.953,19.614,19.601,8.56230668]
[1693920644476,7.953,19.614,19.601,0.60430668]
[1693920644656,7.953,19.614,19.601,8.56230668]
[1693920645266,7.953,19.614,19.601,0.60430668]
[1693920645972,7.953,19.614,19.601,8.56230668]
[1693920646770,7.953,19.614,19.602,55.0]
[1693920646960,7.953,19.614,19.603,0.60430668]
[1693920647662,7.953,19.614,19.603,8.56130668]
[1693920647868,7.953,19.615,19.603,7.957]
[1693920648070,7.951,19.619,19.608,7.955]
[1693920648273,7.951,19.618,19.605,0.60430668]
[1693920648472,7.951,19.618,19.608,7.955]
[1693920648985,40.24489795,19.625,19.605,0.60430668]
[1693920649280,7.951,19.618,19.607,0.60430668]
[1693920649781,7.951,19.618,19.607,7.956]
[1693920650154,7.951,19.618,19.605,75.0]
[1693920650358,7.951,19.618,19.607,0.53148861]
[1693920650574,7.951,19.618,19.607,7.956]
[1693920653766,7.951,19.618,19.605,75.0]
[1693920654381,7.951,19.618,19.605,82.957]
[1693920654883,7.951,19.618,19.606,0.55818879]
[1693920655181,7.951,19.618,19.607,7.956]
[1693920655766,7.951,19.619,19.607,7.956]
[1693920655973,93.1917,19.624,19.607,7.956]
[1693920655974,7.951,19.621,19.611,7.954]
[1693920656489,7.951,19.621,19.61,31.61]
[1693920656783,7.951,19.621,19.61,39.565]
[1693920657084,7.951,19.621,19.61,7.955]
[1693920657290,33.637,19.621,19.605,75.0]
[1693920657781,33.637,19.621,19.608,7.955]
[1693920657990,7.951,19.621,19.61,31.61]
[1693920660285,7.951,19.621,19.605,75.0]
[1693920660682,7.951,19.621,19.608,7.955]
[1693920661966,7.95,19.623,19.61,31.61]
[1693920662272,7.95,19.623,19.612,7.954]
[1693920666486,93.1917,19.624,19.612,7.954]
[1693920666681,7.948,19.628,19.613,55.0]
[1693920666878,175.4091653,19.63,19.617,7.952]
[1693920667075,95.2889,19.63,19.617,7.952]
[1693920667281,95.2889,19.63,19.62,31.61]
[1693920667480,95.2889,19.63,19.622,7.949]
[1693920667690,7.946,19.632,19.622,7.949]
[1693920668095,7.946,19.632,19.62,39.56]
[1693920671997,22.96795917,19.633,19.62,39.56]
[1693920681782,15.02295917,19.633,19.62,39.56]
[1693920681983,15.02295917,19.633,19.62,65.248]
[1693920682380,22.96795917,19.633,19.62,39.56]
[1693920688712,20.0,19.636,19.621,55.0]
[1693920688897,20.0,19.636,19.625,7.948]
[1693920690005,27.944,19.636,19.625,7.948]
[1693920691008,7.944,19.636,19.625,7.948]
[1693920691314,7.944,19.638,19.625,7.948]
[1693920691506,95.2889,19.639,19.625,7.948]
[1693920691822,95.2889,19.639,19.625,33.629]
[1693920691998,103.2319,19.639,19.625,7.948]
[1693920692315,128.8949,19.639,19.623,7.949]
[1693920692503,128.8949,19.639,19.624,75.0]
[1693920692899,128.8949,19.639,19.624,82.949]
[1693920694606,103.2319,19.639,19.624,94.73687]
[1693920694998,7.943,19.639,19.624,94.73687]
[1693920705126,7.943,19.639,19.625,11.78727]
[1693920705426,7.943,19.639,19.627,7.948]
[1693920705726,7.943,19.639,19.628,55.0]
[1693920706126,7.942,19.641,19.628,62.947]
[1693920706313,7.942,19.641,19.63,31.61]
[1693920706634,391.5,19.642,19.63,31.61]
[1693920707324,589.1,19.644,19.63,31.61]
[1693920708220,7.942,19.642,19.63,31.61]
[1693920710031,597.041,19.644,19.63,31.61]
[1693920710707,589.1,19.644,19.631,55.0]
[1693920712027,597.041,19.644,19.631,66.78367]
[1693920714325,7.941,19.644,19.631,66.78367]
[1693920714631,7.939,19.649,19.632,31.78307]
[1693920714831,7.939,19.649,19.633,55.0]
[1693920715124,7.939,19.649,19.633,66.78247]
[1693920715322,7.939,19.649,19.634,20.0]
[1693920715525,7.939,19.649,19.635,55.0]
[1693920720726,55.0,19.648,19.634,20.0]
[1693920720924,7.941,19.645,19.634,20.0]
[1693920721127,7.941,19.645,19.633,11.78247]
[1693920721517,7.943,19.638,19.633,11.78247]
[1693920722726,55.0,19.637,19.633,11.78247]
[1693920722927,53.611,19.636,19.633,11.78247]
[1693920723231,7.946,19.631,19.615,0.60430668]
[1693920723529,7.946,19.631,19.615,82.2423]
[1693920723738,7.946,19.631,19.616,0.60430668]
[1693920724231,7.946,19.631,19.616,55.60430668]
[1693920725519,7.946,19.631,19.616,80.96823913]
[1693920728633,55.0,19.63,19.616,25.36393245]
[1693920728831,7.947,19.628,19.616,25.36393245]
[1693920729640,62.947,19.63,19.616,25.36393245]
[1693920729837,90.9004,19.635,19.617,55.60430668]
[1693920730036,90.9004,19.635,19.618,25.36393245]
[1693920730251,7.945,19.634,19.619,55.60430668]
[1693920730536,7.945,19.634,19.62,25.36393245]
[1693920730739,7.945,19.634,19.621,55.0]
[1693920732442,7.945,19.635,19.621,55.0]
[1693920734646,7.945,19.635,19.62,31.57]
[1693920734844,7.945,19.635,19.615,11.79328]
[1693920734845,55.0,19.634,19.615,11.79328]
[1693920735045,7.946,19.632,19.616,25.96823913]
[1693920735245,7.946,19.632,19.616,37.76091913]
[1693920735445,7.945,19.633,19.617,11.79208]
[1693920735745,7.945,19.633,19.618,25.96823913]
[1693920736546,7.945,19.633,19.62,0.60430668]
[1693920737446,7.945,19.633,19.619,55.0]
[1693920737648,0.89569331,19.632,19.62,0.10430668]
[1693920737854,7.947,19.629,19.62,0.10430668]
[1693920738032,0.89569331,19.628,19.62,0.10430668]
[1693920738438,8.84369331,19.628,19.62,0.10430668]
[1693920739348,8.84269331,19.63,19.62,0.10430668]
[1693920739541,104.8843,19.631,19.616,0.60430668]
[1693920739744,104.8843,19.631,19.616,55.60430668]
[1693920739943,104.8843,19.631,19.616,80.96823913]
[1693920740152,104.8843,19.631,19.616,92.76091913]
[1693920740541,7.946,19.631,19.616,92.76091913]
[1693920741238,7.946,19.631,19.616,92.15661245]
[1693920741441,7.946,19.631,19.617,0.60430668]
[1693920741847,7.946,19.631,19.616,92.15661245]
[1693920742435,7.946,19.631,19.617,0.60430668]
[1693920742640,7.946,19.631,19.616,92.15661245]
[1693920743554,7.946,19.633,19.617,0.60430668]
[1693920743854,7.946,19.633,19.617,25.96823913]
[1693920744046,7.946,19.633,19.618,55.0]
[1693920745641,7.946,19.633,19.619,0.60430668]
[1693920747157,7.946,19.633,19.618,55.0]
[1693920748243,7.946,19.633,19.618,0.60430668]
[1693920748645,7.946,19.633,19.617,55.0]
[1693920748646,7.947,19.628,19.616,11.79268]
[1693920749253,7.947,19.628,19.614,20.0]
[1693920749445,7.947,19.628,19.613,0.60430668]
[1693920750062,7.947,19.628,19.613,55.60430668]
[1693920750360,7.947,19.628,19.614,20.0]
[1693920750560,7.947,19.628,19.615,0.60430668]
[1693920754961,55.0,19.627,19.615,0.60430668]
[1693920755160,7.949,19.624,19.612,20.0]
[1693920755355,170.7614,19.627,19.61,20.0]
[1693920755562,7.949,19.626,19.61,20.60430668]
[1693920755765,55.0,19.625,19.61,20.60430668]
[1693920756064,62.949,19.625,19.61,20.60430668]
[1693920757267,90.0824,19.627,19.61,77.53823913]
[1693920757466,98.0304,19.627,19.611,80.36393245]
[1693920757760,98.0304,19.627,19.612,20.60430668]
[1693920757963,98.0304,19.627,19.614,0.60430668]
[1693920758176,98.0304,19.627,19.614,20.60430668]
[1693920763366,90.0824,19.627,19.614,20.60430668]
[1693920763668,98.0304,19.627,19.614,20.60430668]
[1693920765369,90.0824,19.627,19.614,20.60430668]
[1693920766471,7.948,19.627,19.614,20.60430668]
[1693920767172,95.2676,19.632,19.614,20.60430668]
[1693920767465,95.2676,19.632,19.62,31.58]
[1693920768369,7.945,19.633,19.62,31.58]
[1693920768565,20.0,19.636,19.62,31.58]
[1693920768566,62.946,19.632,19.62,31.58]
[1693920773760,105.6234,19.635,19.62,31.58]
[1693920773968,55.0,19.634,19.62,31.58]
[1693920774275,62.945,19.634,19.62,31.58]
[1693920774480,7.945,19.634,19.62,31.58]
[1693920775361,33.614,19.634,19.62,31.58]
[1693920775769,55.0,19.633,19.62,31.58]
[1693920775969,7.947,19.63,19.62,31.58]
[1693920776976,7.947,19.63,19.615,55.0]
[1693920777170,7.947,19.63,19.616,0.60430668]
[1693920782170,7.947,19.63,19.614,20.0]
[1693920782372,7.947,19.63,19.615,0.60430668]
[1693920782571,7.947,19.63,19.612,20.0]
[1693920782773,7.947,19.63,19.613,55.60430668]
[1693920782972,7.947,19.63,19.614,20.0]
[1693920783173,7.947,19.63,19.615,55.60430668]
[1693920783379,7.947,19.63,19.615,80.96823913]
[1693920783888,7.947,19.63,19.615,80.36393245]
[1693920784094,7.947,19.63,19.616,0.60430668]
[1693920784482,97.6784,19.635,19.62,31.58]
[1693920785084,7.946,19.631,19.62,31.58]
[1693920785282,7.946,19.631,19.621,55.0]
[1693920789184,7.946,19.631,19.62,31.58]
[1693920789390,33.619,19.631,19.62,31.58]
[1693920789890,7.946,19.631,19.62,31.58]
[1693920793001,7.945,19.634,19.62,31.58]
[1693920793296,7.945,19.633,19.621,55.0]
[1693920795797,7.945,19.633,19.622,20.0]
[1693920795995,7.942,19.641,19.623,55.56080399]
[1693920796200,7.942,19.641,19.624,20.0]
[1693920796401,7.942,19.641,19.624,31.78787]
[1693920796600,7.942,19.641,19.625,55.0]
[1693920796908,7.942,19.641,19.63,31.58]
[1693920801510,0.89569331,19.643,19.63,31.58]
[1693920801700,7.942,19.641,19.63,31.58]
[1693920802112,8.83769331,19.643,19.63,31.58]
[1693920802411,8.83769331,19.643,19.631,55.0]
[1693920803406,8.83769331,19.643,19.63,31.58]
[1693920808611,8.83769331,19.643,19.625,11.78727]
[1693920808612,31.58,19.64,19.625,11.78727]
[1693920808811,7.944,19.636,19.625,11.78727]
[1693920809611,7.944,19.638,19.625,11.78727]
[1693920811113,7.943,19.639,19.625,11.78727]
[1693920811316,7.943,19.639,19.626,55.0]
[1693920811621,98.735,19.641,19.626,55.0]
[1693920812001,106.677,19.641,19.63,31.58]
[1693920812198,7.942,19.642,19.631,55.0]
[1693920812397,7.942,19.641,19.631,55.0]
[1693920814208,7.442,19.641,19.631,55.0]
[1693920814813,0.89569331,19.643,19.631,55.0]
[1693920815015,7.94,19.647,19.632,20.0]
[1693920815201,0.89569331,19.648,19.633,55.0]
[1693920815406,0.89569331,19.648,19.634,20.0]
[1693920815712,0.89569331,19.648,19.635,55.0]
[1693920815921,8.83469331,19.648,19.635,55.0]
[1693920821027,0.89569331,19.648,19.635,55.0]
[1693920821316,0.89569331,19.649,19.635,55.0]
[1693920821524,8.83469331,19.649,19.635,55.0]
[1693920822722,0.89569331,19.65,19.635,55.0]
[1693920822926,8.83369331,19.65,19.635,55.0]
[1693920824023,8.83369331,19.65,19.635,66.78127]
[1693920824210,0.89569331,19.65,19.635,66.78127]
[1693920824411,0.89569331,19.651,19.635,66.78127]
[1693920826330,8.83369331,19.651,19.636,11.78067]
[1693920826527,8.83369331,19.651,19.637,55.0]
[1693920826825,8.83369331,19.651,19.637,66.78007]
[1693920829147,8.83369331,19.651,19.637,11.78007]
[1693920829721,55.0,19.65,19.634,20.0]
[1693920829931,7.94,19.646,19.635,20.0]
[1693920830231,8.83669331,19.645,19.631,20.0]
[1693920830417,8.83669331,19.645,19.631,31.78367]
[1693920832126,8.83669331,19.645,19.632,55.0]
[1693920832326,8.83669331,19.645,19.633,20.0]
[1693920833835,8.83669331,19.645,19.634,55.0]
[1693920834030,8.83669331,19.645,19.635,20.0]
[1693920835025,8.83669331,19.645,19.632,20.0]
[1693920835227,8.83669331,19.645,19.633,55.0]
[1693920835533,8.83669331,19.645,19.634,20.0]
[1693920836125,8.83669331,19.645,19.631,11.78367]
[1693920836436,33.607,19.639,19.626,0.60430668]
[1693920836625,7.943,19.639,19.623,20.0]
[1693920837028,7.943,19.639,19.623,76.007]
[1693920837425,7.943,19.639,19.623,20.0]
[1693920837625,7.943,19.639,19.623,0.60430668]
[1693920837824,7.943,19.639,19.623,55.60430668]
[1693920838025,7.943,19.639,19.624,20.0]
[1693920838225,7.943,19.639,19.625,55.0]
[1693920844826,7.945,19.634,19.624,20.0]
[1693920845236,7.945,19.635,19.621,20.0]
[1693920846033,7.945,19.635,19.621,51.54]
[1693920846237,7.945,19.635,19.622,55.0]
[1693920846433,25.663,19.639,19.623,20.0]
[1693920846636,31.54,19.64,19.623,20.0]
[1693920846844,7.943,19.64,19.624,55.0]